[Event "Live Chess"]
[Site "Chess.com"]
[Date "2024.06.02"]
[Round "-"]
[White "Pandreq"]
[Black "jimwad"]
[Result "1/2-1/2"]
[WhiteElo "1238"]
[BlackElo "1330"]
[TimeControl "300"]
[EndTime "7:54:17 PDT"]
[Termination "Game drawn by repetition"]

1. d4 {[%clk 0:04:58.3]} 1... d5 {[%clk 0:04:57.2]} 2. c4 {[%clk 0:04:57.7]}
2... c6 {[%clk 0:04:55.2]} 3. e3 {[%clk 0:04:56.9]} 3... Nf6 {[%clk 0:04:53.5]}
4. cxd5 {[%clk 0:04:55.7]} 4... Nxd5 {[%clk 0:04:51.5]} 5. Nc3 {[%clk
0:04:55.2]} 5... Nxc3 {[%clk 0:04:48.7]} 6. bxc3 {[%clk 0:04:54.8]} 6... Bf5
{[%clk 0:04:43.9]} 7. Ba3 {[%clk 0:04:52.6]} 7... Nd7 {[%clk 0:04:39.5]} 8. Nf3
{[%clk 0:04:50]} 8... e6 {[%clk 0:04:37.8]} 9. Qc1 {[%clk 0:04:43.5]} 9... Bxa3
{[%clk 0:04:24.8]} 10. Qxa3 {[%clk 0:04:42.3]} 10... Qe7 {[%clk 0:04:19.5]} 11.
Qb3 {[%clk 0:04:35.7]} 11... Nb6 {[%clk 0:04:05.4]} 12. Ne5 {[%clk 0:04:26.4]}
12... O-O {[%clk 0:03:54.5]} 13. Nd3 {[%clk 0:04:16.4]} 13... Rfd8 {[%clk
0:03:27.3]} 14. Be2 {[%clk 0:04:13.4]} 14... e5 {[%clk 0:03:23.5]} 15. O-O
{[%clk 0:04:11]} 15... exd4 {[%clk 0:03:21.7]} 16. cxd4 {[%clk 0:04:09.8]} 16...
Be6 {[%clk 0:02:54]} 17. Qc2 {[%clk 0:04:01.6]} 17... Nd5 {[%clk 0:02:50.7]} 18.
Nc5 {[%clk 0:03:54.3]} 18... b6 {[%clk 0:02:42]} 19. Nb3 {[%clk 0:03:47]} 19...
Nb4 {[%clk 0:02:33.3]} 20. Qc3 {[%clk 0:03:33.3]} 20... Bxb3 {[%clk 0:02:24.3]}
21. axb3 {[%clk 0:03:29.9]} 21... Rdc8 {[%clk 0:02:18]} 22. Ra4 {[%clk
0:03:16.4]} 22... Nd5 {[%clk 0:02:15.2]} 23. Qc2 {[%clk 0:03:09.4]} 23... b5
{[%clk 0:02:06]} 24. Ra6 {[%clk 0:03:03.9]} 24... Nb4 {[%clk 0:02:00.1]} 25. Qc3
{[%clk 0:02:47.4]} 25... Nxa6 {[%clk 0:01:57.6]} 26. Ra1 {[%clk 0:02:45.8]}
26... b4 {[%clk 0:01:54.3]} 27. Qc4 {[%clk 0:02:41.9]} 27... Nc7 {[%clk
0:01:50.4]} 28. Qxc6 {[%clk 0:02:35.7]} 28... Ne6 {[%clk 0:01:47.2]} 29. Qe4
{[%clk 0:02:27.6]} 29... Qc7 {[%clk 0:01:24.7]} 30. Bd3 {[%clk 0:02:15.2]} 30...
g6 {[%clk 0:01:19.4]} 31. g3 {[%clk 0:02:09.1]} 31... Qc3 {[%clk 0:01:16.4]} 32.
Bc4 {[%clk 0:02:06.1]} 32... Qxa1+ {[%clk 0:01:12.1]} 33. Kg2 {[%clk 0:02:00.3]}
33... Qc3 {[%clk 0:00:59.6]} 34. Bxe6 {[%clk 0:01:58.8]} 34... fxe6 {[%clk
0:00:57.2]} 35. Qxe6+ {[%clk 0:01:57.7]} 35... Kg7 {[%clk 0:00:56]} 36. Qe7+
{[%clk 0:01:53.5]} 36... Kg8 {[%clk 0:00:49.2]} 37. Qe6+ {[%clk 0:01:51.6]}
37... Kf8 {[%clk 0:00:48.4]} 38. Qf6+ {[%clk 0:01:46.6]} 38... Ke8 {[%clk
0:00:47.3]} 39. Qe6+ {[%clk 0:01:45.6]} 39... Kd8 {[%clk 0:00:45.9]} 40. Qd6+
{[%clk 0:01:43.9]} 40... Ke8 {[%clk 0:00:43.8]} 41. Qe6+ {[%clk 0:01:43.1]}
41... Kf8 {[%clk 0:00:39.6]} 42. Qf6+ {[%clk 0:01:42.1]} 42... Kg8 {[%clk
0:00:37.4]} 43. Qe6+ {[%clk 0:01:37.5]} 1/2-1/2

[Event "Live Chess"]
[Site "Chess.com"]
[Date "2024.06.02"]
[Round "-"]
[White "NAZRIZ1977"]
[Black "FlyingChessKestrel13"]
[Result "1-0"]
[WhiteElo "2073"]
[BlackElo "2054"]
[TimeControl "300"]
[EndTime "7:54:18 PDT"]
[Termination "NAZRIZ1977 won by resignation"]

1. d4 {[%clk 0:04:55.7]} 1... d5 {[%clk 0:04:58.7]} 2. c4 {[%clk 0:04:54.7]}
2... dxc4 {[%clk 0:04:57.9]} 3. Nc3 {[%clk 0:04:53.4]} 3... a6 {[%clk
0:04:56.9]} 4. a4 {[%clk 0:04:52.2]} 4... Nf6 {[%clk 0:04:55]} 5. e3 {[%clk
0:04:51.2]} 5... e5 {[%clk 0:04:54.1]} 6. d5 {[%clk 0:04:47.5]} 6... Bb4 {[%clk
0:04:51.9]} 7. Bxc4 {[%clk 0:04:46.4]} 7... O-O {[%clk 0:04:49.8]} 8. Ne2 {[%clk
0:04:44.4]} 8... Nbd7 {[%clk 0:04:49.3]} 9. O-O {[%clk 0:04:41.5]} 9... Nb6
{[%clk 0:04:48.3]} 10. Bb3 {[%clk 0:04:40.4]} 10... Bg4 {[%clk 0:04:47.6]} 11.
f3 {[%clk 0:04:38.5]} 11... Bh5 {[%clk 0:04:46.7]} 12. e4 {[%clk 0:04:36.5]}
12... Bc5+ {[%clk 0:04:45.1]} 13. Kh1 {[%clk 0:04:35.4]} 13... c6 {[%clk
0:04:44.3]} 14. a5 {[%clk 0:04:34.7]} 14... Nbd7 {[%clk 0:04:41.3]} 15. Bg5
{[%clk 0:04:29.3]} 15... cxd5 {[%clk 0:04:40]} 16. Nxd5 {[%clk 0:04:28]} 16...
Be7 {[%clk 0:04:35.4]} 17. Nxe7+ {[%clk 0:04:22]} 17... Qxe7 {[%clk 0:04:35.3]}
18. Nc3 {[%clk 0:04:21.5]} 18... h6 {[%clk 0:04:27.6]} 19. Nd5 {[%clk
0:04:13.2]} 19... Qd8 {[%clk 0:04:24]} 20. Bh4 {[%clk 0:04:09.7]} 20... g5
{[%clk 0:04:21.2]} 21. Bg3 {[%clk 0:03:59.3]} 21... Nxd5 {[%clk 0:04:18.3]} 22.
Bxd5 {[%clk 0:03:56.8]} 22... Rb8 {[%clk 0:04:15.9]} 23. Qb3 {[%clk 0:03:53.3]}
23... Qe7 {[%clk 0:04:09.9]} 24. Rac1 {[%clk 0:03:49.8]} 24... Bg6 {[%clk
0:04:02.5]} 25. Rc7 {[%clk 0:03:46.6]} 25... Qd6 {[%clk 0:04:00.9]} 26. Rfc1
{[%clk 0:03:44.5]} 26... Kh8 {[%clk 0:03:54.2]} 27. Qa3 {[%clk 0:03:43.2]} 27...
Qxa3 {[%clk 0:03:47.6]} 28. bxa3 {[%clk 0:03:43.1]} 28... Rfd8 {[%clk
0:03:43.3]} 29. Rxd7 {[%clk 0:03:41]} 29... Rxd7 {[%clk 0:03:39.2]} 30. Bxe5+
{[%clk 0:03:40]} 1-0

[Event "Live Chess"]
[Site "Chess.com"]
[Date "2024.06.02"]
[Round "-"]
[White "ProfPoisson"]
[Black "Duke_of_Bebington"]
[Result "1-0"]
[WhiteElo "1347"]
[BlackElo "1574"]
[TimeControl "300"]
[EndTime "7:54:21 PDT"]
[Termination "ProfPoisson won by checkmate"]

1. e4 {[%clk 0:04:55.4]} 1... e5 {[%clk 0:04:58.8]} 2. Nf3 {[%clk 0:04:53.1]}
2... Nf6 {[%clk 0:04:57.6]} 3. Nxe5 {[%clk 0:04:50.3]} 3... d6 {[%clk 0:04:56]}
4. Nxf7 {[%clk 0:04:48.4]} 4... Kxf7 {[%clk 0:04:54.7]} 5. d4 {[%clk 0:04:47]}
5... Be6 {[%clk 0:04:41.6]} 6. Nc3 {[%clk 0:04:45.1]} 6... Nbd7 {[%clk
0:04:39.7]} 7. f4 {[%clk 0:04:30]} 7... Bg4 {[%clk 0:04:36.9]} 8. Be2 {[%clk
0:04:25]} 8... Bxe2 {[%clk 0:04:35.2]} 9. Qxe2 {[%clk 0:04:22.8]} 9... Be7
{[%clk 0:04:20.5]} 10. O-O {[%clk 0:04:22]} 10... Rf8 {[%clk 0:04:19.1]} 11. e5
{[%clk 0:04:18.8]} 11... Ne8 {[%clk 0:04:12.6]} 12. Qc4+ {[%clk 0:04:01]} 12...
Kg6 {[%clk 0:04:06.7]} 13. Qe6+ {[%clk 0:03:44]} 13... Nef6 {[%clk 0:04:03.9]}
14. exf6 {[%clk 0:03:29.4]} 14... Rxf6 {[%clk 0:04:00.4]} 15. f5+ {[%clk
0:03:23.7]} 15... Kh5 {[%clk 0:03:59.2]} 16. Qe2+ {[%clk 0:03:18.4]} 16... Kh4
{[%clk 0:03:56.9]} 17. Rf4+ {[%clk 0:03:11.2]} 17... Kg5 {[%clk 0:03:52.6]} 18.
Qg4+ {[%clk 0:02:59.9]} 18... Kh6 {[%clk 0:03:48.7]} 19. Qh4# {[%clk 0:02:57.6]}
1-0

[Event "Live Chess"]
[Site "Chess.com"]
[Date "2024.06.02"]
[Round "-"]
[White "Hazban"]
[Black "grillage"]
[Result "1-0"]
[WhiteElo "2055"]
[BlackElo "1853"]
[TimeControl "300"]
[EndTime "7:54:37 PDT"]
[Termination "Hazban won on time"]

1. d4 {[%clk 0:04:59.1]} 1... e6 {[%clk 0:04:57.3]} 2. e4 {[%clk 0:04:57.8]}
2... d5 {[%clk 0:04:55.7]} 3. exd5 {[%clk 0:04:56.6]} 3... exd5 {[%clk
0:04:48.7]} 4. Bd3 {[%clk 0:04:55.3]} 4... Nf6 {[%clk 0:04:44.9]} 5. h3 {[%clk
0:04:54.1]} 5... c5 {[%clk 0:04:42.5]} 6. c3 {[%clk 0:04:52.7]} 6... Nc6 {[%clk
0:04:36.1]} 7. Nf3 {[%clk 0:04:51.4]} 7... c4 {[%clk 0:04:25.5]} 8. Bc2 {[%clk
0:04:50.2]} 8... Bd6 {[%clk 0:04:24.5]} 9. O-O {[%clk 0:04:48.5]} 9... O-O
{[%clk 0:04:23.7]} 10. Bg5 {[%clk 0:04:46.5]} 10... h6 {[%clk 0:04:17]} 11. Bh4
{[%clk 0:04:45.3]} 11... Re8 {[%clk 0:04:14.6]} 12. Nbd2 {[%clk 0:04:43.3]}
12... Be7 {[%clk 0:04:00.8]} 13. Re1 {[%clk 0:04:41.3]} 13... b5 {[%clk
0:03:53.9]} 14. a4 {[%clk 0:04:39.4]} 14... b4 {[%clk 0:03:49.4]} 15. Ne5 {[%clk
0:04:25.9]} 15... Qc7 {[%clk 0:03:15.4]} 16. Ndf3 {[%clk 0:04:18.6]} 16... b3
{[%clk 0:02:59.6]} 17. Bb1 {[%clk 0:04:17.6]} 17... Be6 {[%clk 0:02:42.6]} 18.
Bg3 {[%clk 0:04:15.3]} 18... Bd6 {[%clk 0:02:39.9]} 19. Nxc6 {[%clk 0:03:54]}
19... Qxc6 {[%clk 0:02:35.1]} 20. Ne5 {[%clk 0:03:52.9]} 20... Qc7 {[%clk
0:02:26.4]} 21. f4 {[%clk 0:03:47.5]} 21... Rab8 {[%clk 0:01:51.5]} 22. f5
{[%clk 0:03:44.4]} 22... Bd7 {[%clk 0:01:48.7]} 23. Qf3 {[%clk 0:03:42.4]} 23...
a5 {[%clk 0:01:40.3]} 24. Bf4 {[%clk 0:03:11.1]} 24... Qc8 {[%clk 0:01:34.7]}
25. g4 {[%clk 0:03:09.1]} 25... Bc6 {[%clk 0:01:29.5]} 26. Nxc6 {[%clk 0:03:04]}
26... Qxc6 {[%clk 0:01:27.3]} 27. Rf1 {[%clk 0:02:37]} 27... Ne4 {[%clk
0:01:16.8]} 28. g5 {[%clk 0:02:30.1]} 28... Bxf4 {[%clk 0:01:04.6]} 29. Qxf4
{[%clk 0:02:28.8]} 29... hxg5 {[%clk 0:01:01.1]} 30. Qg4 {[%clk 0:02:21.5]}
30... Qh6 {[%clk 0:00:53.6]} 31. Bxe4 {[%clk 0:02:13.7]} 31... Rxe4 {[%clk
0:00:50]} 32. Qg3 {[%clk 0:02:09.4]} 32... Rbe8 {[%clk 0:00:46.9]} 33. Rf3
{[%clk 0:02:00]} 33... Re2 {[%clk 0:00:41.9]} 34. Rf2 {[%clk 0:01:39.9]} 34...
Qh5 {[%clk 0:00:35.7]} 35. Raf1 {[%clk 0:01:34.7]} 35... R2e3 {[%clk 0:00:24.5]}
36. Rf3 {[%clk 0:01:32.1]} 36... Rxf3 {[%clk 0:00:21.4]} 37. Rxf3 {[%clk
0:01:30.8]} 37... Re2 {[%clk 0:00:19.3]} 38. Rf2 {[%clk 0:01:22.7]} 38... Rxf2
{[%clk 0:00:17.5]} 39. Kxf2 {[%clk 0:01:21.9]} 39... Qd1 {[%clk 0:00:15.4]} 40.
Qxg5 {[%clk 0:01:05.6]} 40... Qc2+ {[%clk 0:00:14.7]} 41. Kg3 {[%clk 0:01:03.3]}
41... Qxb2 {[%clk 0:00:13.3]} 42. Qd8+ {[%clk 0:01:00.6]} 42... Kh7 {[%clk
0:00:12.4]} 43. Qxd5 {[%clk 0:00:58.3]} 43... Qxc3+ {[%clk 0:00:10.2]} 44. Kg4
{[%clk 0:00:55.1]} 44... b2 {[%clk 0:00:09.4]} 45. Qe4 {[%clk 0:00:52.9]} 45...
Qc1 {[%clk 0:00:06.8]} 46. f6+ {[%clk 0:00:51.3]} 46... g6 {[%clk 0:00:05.2]}
47. Qe7 {[%clk 0:00:46.2]} 47... Qd1+ {[%clk 0:00:03.4]} 48. Kg3 {[%clk
0:00:43.3]} 48... Qg1+ {[%clk 0:00:01.5]} 49. Kf3 {[%clk 0:00:42.2]} 1-0

[Event "Live Chess"]
[Site "Chess.com"]
[Date "2024.06.02"]
[Round "-"]
[White "DJ_Lambton"]
[Black "imchessive"]
[Result "1-0"]
[WhiteElo "1799"]
[BlackElo "1593"]
[TimeControl "300"]
[EndTime "7:54:50 PDT"]
[Termination "DJ_Lambton won by checkmate"]

1. c4 {[%clk 0:04:59.7]} 1... f5 {[%clk 0:04:58.8]} 2. g3 {[%clk 0:04:59.2]}
2... Nf6 {[%clk 0:04:58.1]} 3. Bg2 {[%clk 0:04:58.8]} 3... d6 {[%clk 0:04:57]}
4. Nc3 {[%clk 0:04:58.5]} 4... c6 {[%clk 0:04:56.4]} 5. e3 {[%clk 0:04:58.2]}
5... a5 {[%clk 0:04:55.7]} 6. Nge2 {[%clk 0:04:57.9]} 6... g6 {[%clk 0:04:55]}
7. O-O {[%clk 0:04:57.6]} 7... Na6 {[%clk 0:04:54]} 8. b3 {[%clk 0:04:57.1]}
8... Nb4 {[%clk 0:04:52.9]} 9. d4 {[%clk 0:04:55.7]} 9... d5 {[%clk 0:04:50.5]}
10. cxd5 {[%clk 0:04:52.4]} 10... Nbxd5 {[%clk 0:04:48.4]} 11. Nxd5 {[%clk
0:04:50.4]} 11... cxd5 {[%clk 0:04:45.5]} 12. Ba3 {[%clk 0:04:49.6]} 12... Bd7
{[%clk 0:04:37.9]} 13. Nf4 {[%clk 0:04:47.9]} 13... e6 {[%clk 0:04:30.6]} 14.
Bxf8 {[%clk 0:04:45.4]} 14... Kxf8 {[%clk 0:04:30.5]} 15. Rc1 {[%clk 0:04:44.5]}
15... Kf7 {[%clk 0:04:22.3]} 16. Nd3 {[%clk 0:04:43.7]} 16... Qe7 {[%clk
0:03:58.3]} 17. Qd2 {[%clk 0:04:42]} 17... Rac8 {[%clk 0:03:56.4]} 18. Ne5+
{[%clk 0:04:40.2]} 18... Kg7 {[%clk 0:03:54.6]} 19. Rxc8 {[%clk 0:04:30.4]}
19... Rxc8 {[%clk 0:03:53]} 20. Rc1 {[%clk 0:04:30]} 20... Ne4 {[%clk 0:03:45]}
21. Bxe4 {[%clk 0:04:25.2]} 21... fxe4 {[%clk 0:03:44.9]} 22. Rxc8 {[%clk
0:04:23.8]} 22... Bxc8 {[%clk 0:03:42.5]} 23. Qc3 {[%clk 0:04:23.3]} 23... Qd8
{[%clk 0:03:24.2]} 24. Qc5 {[%clk 0:04:13.1]} 24... Bd7 {[%clk 0:03:10.2]} 25.
Qd6 {[%clk 0:04:11.7]} 25... Qg5 {[%clk 0:02:24.2]} 26. Qxd7+ {[%clk 0:04:07.9]}
26... Kg8 {[%clk 0:02:16.1]} 27. Qf7+ {[%clk 0:04:04.2]} 27... Kh8 {[%clk
0:02:14.3]} 28. Qf8# {[%clk 0:04:03.7]} 1-0

[Event "Live Chess"]
[Site "Chess.com"]
[Date "2024.06.02"]
[Round "-"]
[White "McCarthyStone"]
[Black "Vladyslav2008"]
[Result "1-0"]
[WhiteElo "2464"]
[BlackElo "2270"]
[TimeControl "300"]
[EndTime "7:55:00 PDT"]
[Termination "McCarthyStone won by checkmate"]

1. b3 {[%clk 0:04:57.7]} 1... Nf6 {[%clk 0:04:57.8]} 2. Bb2 {[%clk 0:04:57.6]}
2... g6 {[%clk 0:04:54.7]} 3. Bxf6 {[%clk 0:04:56.1]} 3... exf6 {[%clk
0:04:54.6]} 4. c4 {[%clk 0:04:55.9]} 4... Bg7 {[%clk 0:04:53.5]} 5. Nc3 {[%clk
0:04:54.9]} 5... O-O {[%clk 0:04:51.8]} 6. g3 {[%clk 0:04:54.8]} 6... f5 {[%clk
0:04:50.8]} 7. Bg2 {[%clk 0:04:54.3]} 7... d6 {[%clk 0:04:47]} 8. e3 {[%clk
0:04:53.5]} 8... Nc6 {[%clk 0:04:41.7]} 9. Nge2 {[%clk 0:04:50.9]} 9... h5
{[%clk 0:04:32.8]} 10. h4 {[%clk 0:04:49.5]} 10... Re8 {[%clk 0:04:28.8]} 11.
Nf4 {[%clk 0:04:47.3]} 11... Ne5 {[%clk 0:04:26.6]} 12. d4 {[%clk 0:04:44.7]}
12... Ng4 {[%clk 0:04:25.5]} 13. O-O {[%clk 0:04:21.9]} 13... c5 {[%clk
0:04:22.7]} 14. Ncd5 {[%clk 0:04:19.3]} 14... Bd7 {[%clk 0:04:12.8]} 15. Rc1
{[%clk 0:04:17.4]} 15... Bc6 {[%clk 0:04:11.1]} 16. a3 {[%clk 0:04:05]} 16... a5
{[%clk 0:04:08.8]} 17. Qd2 {[%clk 0:03:42.9]} 17... b5 {[%clk 0:03:40]} 18. cxb5
{[%clk 0:03:20.5]} 18... Bxb5 {[%clk 0:03:37.1]} 19. Rfd1 {[%clk 0:03:20]} 19...
cxd4 {[%clk 0:03:30.8]} 20. Nc7 {[%clk 0:03:02.5]} 20... dxe3 {[%clk 0:03:29]}
21. fxe3 {[%clk 0:03:01.6]} 21... Nxe3 {[%clk 0:03:11.2]} 22. Bxa8 {[%clk
0:02:58.4]} 22... Nxd1 {[%clk 0:03:05.7]} 23. Nxe8 {[%clk 0:02:21.2]} 23... Qxe8
{[%clk 0:02:37.5]} 24. Bd5 {[%clk 0:01:38.9]} 24... Nb2 {[%clk 0:01:54.2]} 25.
Rc7 {[%clk 0:01:28.6]} 25... Bd7 {[%clk 0:01:46.8]} 26. Nxg6 {[%clk 0:01:21]}
26... Qd8 {[%clk 0:01:45.5]} 27. Rb7 {[%clk 0:01:06.1]} 27... a4 {[%clk
0:01:28.3]} 28. b4 {[%clk 0:01:01.5]} 28... Bc6 {[%clk 0:00:44]} 29. Bxc6 {[%clk
0:00:27.1]} 29... fxg6 {[%clk 0:00:42.3]} 30. Rxg7+ {[%clk 0:00:19.6]} 30...
Kxg7 {[%clk 0:00:40.1]} 31. Qxb2+ {[%clk 0:00:19.5]} 31... Kh7 {[%clk
0:00:36.7]} 32. Qd4 {[%clk 0:00:18.4]} 32... Qe7 {[%clk 0:00:33.4]} 33. Kf2
{[%clk 0:00:13.8]} 33... Qe6 {[%clk 0:00:30.3]} 34. Bf3 {[%clk 0:00:11.2]} 34...
Qa2+ {[%clk 0:00:28.9]} 35. Be2 {[%clk 0:00:10.7]} 35... Qxa3 {[%clk 0:00:27.6]}
36. Qxd6 {[%clk 0:00:10.3]} 36... Qc3 {[%clk 0:00:25.5]} 37. Qe7+ {[%clk
0:00:09.4]} 37... Kh6 {[%clk 0:00:24.2]} 38. Qg5+ {[%clk 0:00:08.8]} 38... Kg7
{[%clk 0:00:23.7]} 39. b5 {[%clk 0:00:07.6]} 39... Qc5+ {[%clk 0:00:22.4]} 40.
Qe3 {[%clk 0:00:07.1]} 40... Qd6 {[%clk 0:00:19.4]} 41. b6 {[%clk 0:00:06.3]}
41... Qb8 {[%clk 0:00:18.2]} 42. Qd4+ {[%clk 0:00:05]} 42... Kh6 {[%clk
0:00:17.2]} 43. Qd2+ {[%clk 0:00:04.6]} 43... Kg7 {[%clk 0:00:16.2]} 44. Qc3+
{[%clk 0:00:04.2]} 44... Kf7 {[%clk 0:00:15.7]} 45. Qc7+ {[%clk 0:00:03.2]}
45... Qxc7 {[%clk 0:00:14]} 46. bxc7 {[%clk 0:00:03.1]} 46... a3 {[%clk
0:00:13.8]} 47. c8=Q {[%clk 0:00:03]} 47... Kf6 {[%clk 0:00:13.5]} 48. Qc4
{[%clk 0:00:02.9]} 48... Ke7 {[%clk 0:00:12.9]} 49. Qa2 {[%clk 0:00:02.8]} 49...
Kd6 {[%clk 0:00:12.5]} 50. Qxa3+ {[%clk 0:00:02.7]} 50... Ke5 {[%clk 0:00:12.4]}
51. Qe3+ {[%clk 0:00:02.6]} 51... Kd6 {[%clk 0:00:11.9]} 52. Qg5 {[%clk
0:00:02.5]} 52... Kc7 {[%clk 0:00:11.6]} 53. Bxh5 {[%clk 0:00:02.4]} 53... Kc6
{[%clk 0:00:11.4]} 54. Bxg6 {[%clk 0:00:02.3]} 54... Kb6 {[%clk 0:00:11.2]} 55.
Bxf5 {[%clk 0:00:02.1]} 55... Ka5 {[%clk 0:00:11.1]} 56. Bg4+ {[%clk 0:00:01.6]}
56... Kb6 {[%clk 0:00:11]} 57. h5 {[%clk 0:00:01.5]} 57... Ka6 {[%clk 0:00:10]}
58. h6 {[%clk 0:00:01.4]} 58... Kb6 {[%clk 0:00:09.9]} 59. h7 {[%clk 0:00:01]}
59... Ka6 {[%clk 0:00:09.8]} 60. h8=Q {[%clk 0:00:00.9]} 60... Kb6 {[%clk
0:00:09.6]} 61. Qhh6+ {[%clk 0:00:00.7]} 61... Kc7 {[%clk 0:00:09.3]} 62. Qgg7+
{[%clk 0:00:00.6]} 62... Kb8 {[%clk 0:00:07.8]} 63. Qhh8# {[%clk 0:00:00.5]} 1-0

[Event "Live Chess"]
[Site "Chess.com"]
[Date "2024.06.02"]
[Round "-"]
[White "V1nas"]
[Black "RamsayFlayer"]
[Result "0-1"]
[WhiteElo "1319"]
[BlackElo "1936"]
[TimeControl "300"]
[EndTime "7:55:10 PDT"]
[Termination "RamsayFlayer won by resignation"]

1. d4 {[%clk 0:04:57.4]} 1... d5 {[%clk 0:04:57.7]} 2. Nc3 {[%clk 0:04:56.7]}
2... c5 {[%clk 0:04:56.3]} 3. Nf3 {[%clk 0:04:50.1]} 3... e6 {[%clk 0:04:54]} 4.
e4 {[%clk 0:04:47.1]} 4... dxe4 {[%clk 0:04:47.4]} 5. Nxe4 {[%clk 0:04:44.7]}
5... cxd4 {[%clk 0:04:46.3]} 6. Bb5+ {[%clk 0:04:42.8]} 6... Bd7 {[%clk
0:04:44.6]} 7. Bxd7+ {[%clk 0:04:24.2]} 7... Qxd7 {[%clk 0:04:42.5]} 8. Qxd4
{[%clk 0:04:22.6]} 8... Qxd4 {[%clk 0:04:33.2]} 9. Nxd4 {[%clk 0:04:22.5]} 9...
Nd7 {[%clk 0:04:30]} 10. O-O {[%clk 0:04:18.7]} 10... Nc5 {[%clk 0:04:22.1]} 11.
Re1 {[%clk 0:04:10.4]} 11... Nxe4 {[%clk 0:04:19.2]} 12. Rxe4 {[%clk 0:04:09.3]}
12... Nf6 {[%clk 0:04:18.3]} 13. Re2 {[%clk 0:04:00]} 13... O-O-O {[%clk
0:04:16.3]} 14. c3 {[%clk 0:03:54]} 14... Bc5 {[%clk 0:04:09]} 15. Nf3 {[%clk
0:03:35.5]} 15... Rd1+ {[%clk 0:03:58.7]} 16. Re1 {[%clk 0:03:33.6]} 16... Rhd8
{[%clk 0:03:47.2]} 17. Bg5 {[%clk 0:03:22.3]} 17... Rxa1 {[%clk 0:03:34.7]} 18.
Rxa1 {[%clk 0:03:20.4]} 18... Rd5 {[%clk 0:03:16.2]} 19. Bxf6 {[%clk 0:03:18.7]}
19... gxf6 {[%clk 0:03:14.8]} 20. Ne1 {[%clk 0:02:52.2]} 20... Rd2 {[%clk
0:03:09.1]} 21. Kh1 {[%clk 0:02:35.2]} 21... Rxb2 {[%clk 0:03:00]} 22. Nd3
{[%clk 0:02:33.6]} 22... Rb5 {[%clk 0:02:54.5]} 23. a4 {[%clk 0:02:31]} 23...
Ra5 {[%clk 0:02:51.9]} 24. Nxc5 {[%clk 0:02:27]} 24... Rxc5 {[%clk 0:02:50.6]}
25. Ra3 {[%clk 0:02:23.1]} 25... Kd7 {[%clk 0:02:39.2]} 26. g3 {[%clk
0:02:21.6]} 26... Kd6 {[%clk 0:02:38.1]} 27. Kg2 {[%clk 0:02:21]} 27... Kd5
{[%clk 0:02:35.7]} 28. f4 {[%clk 0:02:20.6]} 28... Ke4 {[%clk 0:02:30.8]} 29.
Kf2 {[%clk 0:02:15.5]} 29... Kd3 {[%clk 0:02:28.7]} 30. a5 {[%clk 0:02:10.1]}
30... Rxc3 {[%clk 0:02:26.6]} 31. Ra4 {[%clk 0:02:07.8]} 31... Rc2+ {[%clk
0:02:21.6]} 32. Kg1 {[%clk 0:01:59.9]} 32... Ke3 {[%clk 0:02:17.8]} 33. Ra3+
{[%clk 0:01:56.5]} 33... Ke2 {[%clk 0:02:16.8]} 34. Rb3 {[%clk 0:01:52.3]} 34...
Rc7 {[%clk 0:02:13.7]} 35. Rb2+ {[%clk 0:01:49.9]} 35... Kf3 {[%clk 0:02:10.8]}
36. Rb3+ {[%clk 0:01:47.8]} 36... Kg4 {[%clk 0:02:09.6]} 37. Kf2 {[%clk
0:01:43.6]} 37... Kh3 {[%clk 0:02:06.1]} 38. Rb2 {[%clk 0:01:28.2]} 38... Kxh2
{[%clk 0:02:01.9]} 39. Kf3+ {[%clk 0:01:27.4]} 39... Kh3 {[%clk 0:01:58.7]} 40.
Rb3 {[%clk 0:01:19.5]} 40... e5 {[%clk 0:01:48.8]} 41. f5 {[%clk 0:01:16.6]}
41... e4+ {[%clk 0:01:30.1]} 42. Kxe4 {[%clk 0:01:10.2]} 42... Kg4 {[%clk
0:01:28.7]} 43. Rb4 {[%clk 0:00:59.5]} 43... Kxg3 {[%clk 0:01:26.7]} 44. Kd5
{[%clk 0:00:55.1]} 44... h5 {[%clk 0:01:18.2]} 45. Rb3+ {[%clk 0:00:51.8]} 45...
Kg4 {[%clk 0:01:16]} 46. Rb5 {[%clk 0:00:41.2]} 46... Kxf5 {[%clk 0:01:12.5]}
47. Kd6+ {[%clk 0:00:40.2]} 47... Kg4 {[%clk 0:00:59.7]} 48. Kxc7 {[%clk
0:00:39.4]} 48... h4 {[%clk 0:00:57.4]} 49. Rb4+ {[%clk 0:00:38.1]} 49... Kg5
{[%clk 0:00:49.5]} 50. Kd6 {[%clk 0:00:33.2]} 50... f5 {[%clk 0:00:46.7]} 51.
Ke5 {[%clk 0:00:30.3]} 51... h3 {[%clk 0:00:40.9]} 52. Rf4 {[%clk 0:00:27.7]}
52... f6+ {[%clk 0:00:34.7]} 0-1